[Event "26th Hit Open-A 2022"]
[Site "Nova Gorica"]
[Date "2022.09.18"]
[Round "5.32"]
[White "Krivenko, Dion"]
[Black "Oestmann, Lukas"]
[Result "1-0"]
[ECO "C00"]
[WhiteElo "2113"]
[BlackElo "1620"]
[Annotator "TA"]
[PlyCount "119"]
[EventDate "2022.09.16"]
[EventType "swiss"]
[EventCountry "SLO"]
[SourceTitle "playchess.com"]
[Source "ChessBase"]
[SourceQuality "1"]
[TimeControl "5400+30"]

{[%evp 9,118,-8,0,-13,0,-8,2,7,10,0,20,7,27,-30,-34,-47,27,31,33,2,17,-7,0,-17,17,-16,32,41,117,82,175,173,184,183,173,181,168,158,170,166,167,170,205,172,229,188,180,177,181,191,230,209,229,221,231,231,236,220,237,228,229,225,305,206,211,211,227,237,233,208,241,233,302,295,314,285,285,295,307,187,186,187,359,279,278,267,277,276,262,259,362,278,362,366,344,271,592,501,409,75,1166,745,737,737,1853,730,29988,29989,29990,29991,29999]} 1. e4 {[%emt 0:00:28]} c5 {[%emt 0:00:01]} 2. Nf3 {[%emt 0:00:07]} e6 {[%emt 0:00:03]} 3. Qe2 {[%emt 0:00:52]} Nc6 {[%emt 0:00:27]} 4. g3 {[%emt 0:00:06]} e5 {[%emt 0:06:16]} 5. c3 {[%emt 0:01:51]} d6 {[%emt 0:01:22]} 6. Na3 {[%emt 0:00:21] C00: French: Unusual White 2nd moves.} Nf6 {[%emt 0:01:50]} 7. Bg2 {[%emt 0:00:29]} Be7 {[%emt 0:00:24]} 8. O-O {[%emt 0:00:31] The position is equal.} O-O {[%emt 0:00:05]} 9. Nc2 {[%emt 0:01:14]} Bg4 {[%emt 0:05:15]} 10. h3 {[%emt 0:02:25] [#]} Bd7 $146 {[%emt 0:02:11]} ({Predecessor:} 10... Bh5 11. d4 cxd4 12. cxd4 Rc8 13. d5 Nb8 14. Na3 Na6 15. Qe3 Qd7 16. Nd2 Bd8 {1-0 (42) Domingo Nunez,A (2345)-Rey Martinez,J (2144) Linares 2022}) 11. b4 {[%emt 0:02:56]} (11. d4 $142) 11... cxb4 $11 {[%emt 0:05:45]} 12. cxb4 {[%emt 0:00:13]} Qc7 {[%emt 0:06:38]} (12... a5 $15) 13. Bb2 {[%emt 0:04:51]} Rac8 {[%emt 0:06:59]} 14. Rfc1 {[%emt 0:06:01]} Qb6 {[%emt 0:05:08]} 15. Bc3 {[%emt 0:07:44]} (15. a3 $5 {[%cal Rd2d4]}) 15... Rfe8 {[%emt 0:07:52]} 16. a4 {[%emt 0:02:04]} a6 {[%emt 0:03:21]} 17. Rab1 {[%emt 0:07:28]} d5 {[%emt 0:09:49]} (17... Nd8 $11 {might be stronger.}) 18. b5 $14 {[%emt 0:06:05]} Nb8 {[%emt 0:02:49]} (18... axb5 $14 19. axb5 (19. Rxb5 Qa7 $17) 19... Na7) 19. Nxe5 {[%emt 0:05:07]} (19. exd5 {is more complex.} e4 20. Ne5 Nxd5 21. Bd4) 19... Nxe4 {[%emt 0:02:34]} (19... dxe4 $16 20. Ne3 (20. Nxd7 Nbxd7 21. bxa6 Qxa6 $14) 20... axb5) 20. Bxe4 $18 {[%emt 0:10:38]} dxe4 {[%emt 0:00:54]} 21. bxa6 {[%emt 0:02:44]} (21. Qxe4 $6 Bf6 $14) (21. Qh5 Qe6 22. Nxd7 Nxd7 $11) 21... Qxa6 {[%emt 0:01:15]} 22. Qxa6 {[%emt 0:00:29]} ({Worse is} 22. Qxe4 Bd6 23. Nb4 (23. Rxb7 $2 Bxe5 24. Bxe5 Rxe5 $19) 23... Qxa4 24. Qxb7 Rxc3 25. dxc3 Bxe5 $11) 22... bxa6 {[%emt 0:00:26] [#]} 23. Rxb8 $1 {[%emt 0:01:24][%mdl 512]} Rxb8 {[%emt 0:00:15]} 24. Nxd7 {[%emt 0:00:02]} Rb7 {[%emt 0:01:37]} 25. Ne5 {[%emt 0:00:37]} Bf6 {[%emt 0:00:59] [#]} 26. Ne3 $1 {[%emt 0:08:00]} h5 {[%emt 0:02:29]} (26... g6 {keeps fighting.}) (26... Reb8 27. Kg2) 27. Nc6 {[%emt 0:02:46]} Bxc3 {[%emt 0:01:35]} 28. dxc3 {[%emt 0:00:33]} ({Don't play} 28. Rxc3 g6 29. Kf1 Re6) 28... Rc8 {[%emt 0:02:15]} 29. Nd4 {[%emt 0:00:33]} Rd7 {[%emt 0:02:33]} 30. Rc2 {[%emt 0:01:19]} g6 {[%emt 0:01:12]} 31. g4 {[%emt 0:02:14]} hxg4 {[%emt 0:00:33]} 32. hxg4 {[%emt 0:00:06]} Kg7 {[%emt 0:00:32]} 33. Ne2 {[%emt 0:00:46]} Rd3 {[%emt 0:03:34]} 34. Rb2 {[%emt 0:00:51]} Rc5 {[%emt 0:01:40]} 35. Rb4 {[%emt 0:04:54]} f5 {[%emt 0:00:55]} 36. gxf5 {[%emt 0:00:50]} gxf5 {[%emt 0:01:48]} 37. Nd4 {[%emt 0:01:17] Strongly threatening Ne6+.} Rcxc3 {[%emt 0:03:51]} 38. Ndxf5+ {[%emt 0:00:52] Pair of Knights!} Kf8 {[%emt 0:00:13]} 39. Ng3 {[%emt 0:04:52]} Rc1+ {[%emt 0:00:59]} 40. Kg2 {[%emt 0:00:19]} a5 {[%emt 0:01:13]} 41. Rb5 {[%emt 0:01:39]} ({Don't do} 41. Rxe4 Ra3 42. Nd5 Rc2 43. Rf4+ Ke8 $18) 41... Ra1 {[%emt 0:00:55]} 42. Rxa5 {[%emt 0:00:16]} Ra2 {[%emt 0:01:31]} 43. Ra8+ {[%emt 0:08:50]} Kf7 {[%emt 0:00:45]} 44. Ngf5 {[%emt 0:00:33]} Rda3 {[%emt 0:01:18]} 45. Nd6+ {[%emt 0:02:03]} Ke6 $2 {[%emt 0:00:59]} (45... Kg7 {was called for.} 46. Nef5+ Kh7 47. Nxe4 Rxa4) 46. Ndc4 {[%emt 0:00:35]} Rxa4 {[%emt 0:00:35]} 47. Re8+ {[%emt 0:00:09]} Kf7 {[%emt 0:00:45]} 48. Rxe4 {[%emt 0:00:16]} Ra7 {[%emt 0:02:03]} 49. Kg3 {[%emt 0:00:17]} Kg8 {[%emt 0:00:40]} 50. Re8+ {[%emt 0:00:31]} Kh7 {[%emt 0:00:41]} 51. f4 {[%emt 0:00:25][%cal Bf2f4,Bf4f5][%mdl 32]} Rg7+ {[%emt 0:00:44]} 52. Kf3 {[%emt 0:00:06] f5 is the strong threat.} Ra1 $2 {[%emt 0:00:28]} (52... Rg8) 53. f5 {[%emt 0:00:48]} Rf7 {[%emt 0:00:24]} 54. Ne5 $2 {[%emt 0:00:48]} (54. Kf4 $18 {is more deadly.}) 54... Rf6 $2 {[%emt 0:00:37][%mdl 8192] A mistake that costs the game.} (54... Rxf5+ $16 55. Nxf5 Rf1+ 56. Kg3 Rxf5) 55. Re7+ {[%emt 0:00:15]} Kg8 {[%emt 0:00:27]} 56. Kf4 {[%emt 0:00:55] Threatening mate with Kg5.} Kf8 {[%emt 0:01:01]} 57. Rc7 {[%emt 0:00:47]} (57. Rb7 $142) 57... Rg1 {[%emt 0:02:37]} 58. Nd7+ {[%emt 0:00:14] White mates.} Kf7 {[%emt 0:00:09]} 59. Nxf6+ {[%emt 0:00:17]} Kxf6 {[%emt 0:00:09]} 60. Nd5# {[%emt 0:00:10] Weighted Error Value: White=0.31/Black=0.46} 1-0

[Event "26th Hit Open-A 2022"]
[Site "Nova Gorica"]
[Date "2022.09.18"]
[Round "5.33"]
[White "Labrovic, Jakov"]
[Black "Rozman, Monika"]
[Result "1-0"]
[ECO "C22"]
[WhiteElo "1882"]
[BlackElo "2111"]
[Annotator "TA"]
[PlyCount "101"]
[EventDate "2022.09.16"]
[EventType "swiss"]
[EventCountry "SLO"]
[SourceTitle "playchess.com"]
[Source "ChessBase"]
[SourceQuality "1"]
[TimeControl "5400+30"]

{[%evp 9,101,19,22,-39,-7,-65,23,13,31,12,45,35,65,69,53,70,135,134,156,160,204,212,239,259,265,253,252,246,245,223,313,306,305,306,279,281,408,405,398,235,289,284,330,331,342,329,307,270,299,279,332,317,324,326,327,321,312,276,288,279,416,408,389,390,379,385,353,199,390,378,573,558,513,418,679,672,587,461,597,558,585,472,502,491,775,633,716,535,747,748,6149,6149,29987,29987]} 1. e4 {[%emt 0:00:05]} e5 {[%emt 0:00:04]} 2. d4 {[%emt 0:00:06]} exd4 {[%emt 0:00:11]} 3. Qxd4 {[%emt 0:00:09]} Nc6 {[%emt 0:00:37]} 4. Qe3 {[%emt 0:00:16]} d6 {[%emt 0:02:18]} 5. Bc4 {[%emt 0:00:58]} Nf6 {[%emt 0:01:27]} 6. f4 {[%emt 0:01:05] C22: Centre Game.} (6. Nc3 $11) 6... Be7 {[%emt 0:00:50] White must now prevent ...d5.} 7. Nf3 {[%emt 0:02:12]} (7. Nc3 $11) 7... O-O {[%emt 0:00:50]} ({Better is} 7... d5 $1 $15 8. exd5 Nxd5) 8. Nc3 $1 $11 {[%emt 0:00:39] [#] White has an edge.} Na5 $146 {[%emt 0:07:28]} ({Predecessor:} 8... Nb4 9. Bb3 Be6 10. a3 Na6 11. Bxe6 fxe6 12. Ng5 Ng4 13. Qh3 Bxg5 14. Qxg4 Bf6 15. Bd2 Nc5 16. O-O Bd4+ 17. Kh1 Rf6 18. f5 Qf8 19. Rf3 Re8 20. Raf1 Nd7 21. Qh5 {½-½ (21) Schoch,T (2070)-Keskowski,T (2160) Berlin 2004}) 9. Bd3 {[%emt 0:00:30]} c5 {[%emt 0:00:34]} (9... Nc6 $5 {[%cal Rd6d5]}) 10. Bd2 {[%emt 0:11:30]} Re8 {[%emt 0:02:46]} 11. O-O-O $1 {[%emt 0:00:25]} c4 {[%emt 0:06:00] ...Ng4 is the strong threat.} 12. Bf1 {[%emt 0:00:41]} Bd7 {[%emt 0:04:52]} (12... Bf8 $14) 13. e5 $1 $16 {[%emt 0:03:42]} Ng4 {[%emt 0:00:25] [#]} 14. Qe1 {[%emt 0:00:38]} Bc6 {[%emt 0:07:09] [#]} 15. Nd5 $1 {[%emt 0:29:19][%mdl 512]} Bxd5 {[%emt 0:10:23]} (15... b6 16. Bxa5) 16. Bxa5 {[%emt 0:00:16][%mdl 64] Discovered Attack} b6 {[%emt 0:01:30]} 17. Rxd5 {[%emt 0:00:19]} bxa5 {[%emt 0:00:10]} 18. h3 {[%emt 0:00:51]} (18. Bxc4 $6 Qc7 19. Bd3 dxe5 $16) 18... Nh6 {[%emt 0:00:51]} 19. Bxc4 {[%emt 0:00:45]} Qc7 {[%emt 0:06:05]} (19... Qb6 $142 20. Qxa5 dxe5 21. Nxe5 (21. Rxe5 Bd6 $18) 21... Qf2) 20. Qe4 $18 {[%emt 0:04:46]} Rab8 {[%emt 0:06:45]} 21. g4 {[%emt 0:07:30]} (21. Bd3 $6 g6 22. g4 Qb7 $18) 21... g6 {[%emt 0:00:43]} 22. Rhd1 {[%emt 0:01:26]} Qb7 {[%emt 0:00:32]} (22... Bf8 $142 23. c3 dxe5 24. Nxe5 a4) 23. b3 {[%emt 0:01:07] Active counter play!} Qb4 {[%emt 0:04:27]} 24. Qe1 {[%emt 0:07:11]} (24. Kb1 $142) 24... dxe5 {[%emt 0:08:35]} 25. Qxb4 {[%emt 0:01:21]} ({Much less strong is} 25. Nxe5 Qxe1 26. Rxe1 Rbd8 $18) (25. Rxa5 e4 $16) (25. Qxe5 $6 a4 26. Rd7 Bf8 $18) (25. Rxe5 Qxe1 26. Rdxe1 Ba3+ 27. Kb1 Rxe5 28. Rxe5 Rd8 $18) 25... axb4 {[%emt 0:03:34]} 26. Nxe5 {[%emt 0:00:14]} ({Don't play} 26. fxe5 Rbd8 27. Rd7 a5 $18) ({Resist} 26. Rxe5 Bf8 27. Rd7 Red8 $18) 26... Rb7 {[%emt 0:04:42]} 27. g5 {[%emt 0:07:51]} Nf5 {[%emt 0:00:41] [#]} 28. Nxf7 $1 {[%emt 0:00:32][%mdl 512]} Kf8 {[%emt 0:00:46]} (28... Ne3 29. Ne5) 29. Nd8 {[%emt 0:01:41]} Bxd8 {[%emt 0:04:52]} 30. Rxd8 {[%emt 0:00:15]} Rxd8 {[%emt 0:00:26]} 31. Rxd8+ {[%emt 0:00:06][%mdl 4096] Endgame KRB-KRN} Ke7 {[%emt 0:00:03]} 32. Rh8 {[%emt 0:01:06]} Kd6 {[%emt 0:00:02]} 33. Rf8 {[%emt 0:02:10]} Kc5 {[%emt 0:01:28]} 34. Bd3 {[%emt 0:00:48]} Ne3 {[%emt 0:03:04]} (34... Nd6 {keeps fighting.} 35. h4 Kd5) 35. Kd2 {[%emt 0:01:06]} Re7 {[%emt 0:02:46]} 36. f5 {[%emt 0:00:43]} gxf5 {[%emt 0:00:09]} 37. Bxf5 {[%emt 0:00:03]} Nf1+ {[%emt 0:02:54]} 38. Kd1 {[%emt 0:01:08]} (38. Kc1 $142) 38... Kd4 $2 {[%emt 0:01:39]} (38... Ne3+ 39. Kd2 Nf1+ 40. Kc1 Ng3) 39. Bd3 {[%emt 0:02:31]} Ne3+ {[%emt 0:03:28]} (39... Ng3 $142 40. Rf4+ Ke3 41. Rxb4 Nh1) 40. Kd2 {[%emt 0:00:23]} Nd5 {[%emt 0:00:01]} 41. Rd8 {[%emt 0:00:55] aiming for Bc4.} Kc5 {[%emt 0:00:43]} (41... Ke5 $142 42. Rf8 Nc7) 42. Rc8+ {[%emt 0:00:32]} Kd6 {[%emt 0:01:13]} 43. Rc4 {[%emt 0:00:48] Prevents Nf4.} a5 {[%emt 0:01:08]} 44. Rh4 {[%emt 0:00:15]} Nc3 {[%emt 0:00:48]} 45. Bxh7 {[%emt 0:01:20]} Re2+ {[%emt 0:02:05]} 46. Kd3 {[%emt 0:00:02]} Ke5 {[%emt 0:00:22]} (46... Re7 $142 47. Bf5 Rg7) 47. Kc4 {[%emt 0:00:45]} Rg2 {[%emt 0:01:01]} 48. Rh5 {[%emt 0:01:16]} Kd6 {[%emt 0:00:32]} 49. g6 {[%emt 0:00:53][%cal Bg5g6,Bg6g7][%mdl 32]} Rxc2 {[%emt 0:00:29]} 50. g7 {[%emt 0:01:00]} Nd5+ {[%emt 0:00:04]} 51. Bxc2 {[%emt 0:00:21] Black did not feel at home in the position after the opening.  Weighted Error Value: White=0.23 (precise) /Black=0.47} 1-0

[Event "26th Hit Open-A 2022"]
[Site "Nova Gorica"]
[Date "2022.09.18"]
[Round "5.34"]
[White "Centrih, Aleks"]
[Black "Petrovcic, Cvetko"]
[Result "1-0"]
[ECO "C42"]
[WhiteElo "2095"]
[BlackElo "1602"]
[Annotator "TA"]
[PlyCount "115"]
[EventDate "2022.09.16"]
[EventType "swiss"]
[EventCountry "SLO"]
[SourceTitle "playchess.com"]
[Source "ChessBase"]
[SourceQuality "1"]
[TimeControl "5400+30"]

{[%evp 9,115,122,120,104,103,97,110,104,104,95,97,103,107,97,94,90,88,82,101,103,105,112,143,147,158,140,141,141,140,126,152,149,163,141,149,144,145,154,163,150,154,160,207,210,246,235,239,241,243,233,248,227,243,236,255,247,309,314,364,358,330,356,351,354,465,457,471,465,468,443,581,574,571,567,689,711,919,873,799,736,12837,12837,12838,12838,12838,12839,12839,12840,12841,12839,12841,12842,12843,12843,12846,12843,27999,27999,27999,27999,27999,27999,27999,27999,27999,27999,27999,27999]} 1. e4 {[%emt 0:00:08]} e5 {[%emt 0:00:02]} 2. Nf3 {[%emt 0:00:17]} Nf6 {[%emt 0:00:25]} 3. Nxe5 {[%emt 0:00:09]} Nc6 {[%emt 0:01:13]} 4. Nxc6 {[%emt 0:00:07]} dxc6 {[%emt 0:00:24]} 5. d3 {[%emt 0:00:11]} Bc5 {[%emt 0:00:39] [#] Threatens to win with ...Ng4.} 6. Be2 {[%emt 0:00:06] Against Ng4. C42: Petroff Defence: 3 Nxe5 and unusual White 3rd moves.} Ng4 {[%emt 0:01:25]} 7. Bxg4 {[%emt 0:00:12]} Qh4 {[%emt 0:00:41][%csl Gc5,LRf2,LRg4][%cal Rh4f2]} 8. g3 {[%emt 0:00:23] White is better.} (8. Qf3 {seems wilder.} Bxg4 9. Qf4 Bd6 10. e5) 8... Qxg4 {[%emt 0:00:22]} 9. Qxg4 {[%emt 0:00:06]} Bxg4 {[%emt 0:00:44] [#]} 10. h3 $146 {[%emt 0:00:32]} ({Predecessor:} 10. O-O h5 11. Kg2 O-O-O 12. h3 Be6 13. Re1 f5 14. Bg5 Rdf8 15. Nd2 h4 16. exf5 {½-½ (41) Suta,A (2251)-Srebrnic,M (2400) Otocec 2021}) 10... Be6 {[%emt 0:02:22]} 11. Nc3 {[%emt 0:04:04]} f5 {[%emt 0:00:32]} 12. exf5 {[%emt 0:03:06]} Bxf5 {[%emt 0:00:42][%cal Be6f5,Bf5g6,Bg6f7,Bf7d5][%mdl 32]} 13. Be3 {[%emt 0:00:06]} Be7 {[%emt 0:02:15]} 14. O-O-O {[%emt 0:01:10]} O-O {[%emt 0:00:16]} 15. g4 {[%emt 0:21:43]} Bg6 {[%emt 0:01:47]} 16. f4 {[%emt 0:00:34]} b5 {[%emt 0:00:02]} 17. Ne4 {[%emt 0:06:15]} Bf7 {[%emt 0:01:54]} 18. f5 {[%emt 0:06:05]} Bd5 {[%emt 0:00:14]} 19. Rhf1 {[%emt 0:02:44]} h6 {[%emt 0:14:20]} 20. Bf4 {[%emt 0:01:08] White is more active.} Rac8 {[%emt 0:01:18]} 21. Rfe1 {[%emt 0:01:36][%cal Bf1e1,Be1e5,Be5e6,Be6b6][%mdl 32]} a5 {[%emt 0:01:00]} 22. Nc3 {[%emt 0:00:15]} Bh4 {[%emt 0:00:09]} 23. Nxd5 {[%emt 0:00:40]} cxd5 {[%emt 0:01:01]} 24. Re5 {[%emt 0:07:21]} c6 {[%emt 0:00:23]} 25. Rd2 {[%emt 0:01:45]} Bd8 {[%emt 0:02:32]} (25... Kf7 $16 26. Rde2 a4) 26. Re6 $18 {[%emt 0:00:51]} Bc7 {[%emt 0:00:27]} 27. Bxc7 {[%emt 0:00:06]} Rxc7 {[%emt 0:00:29][%mdl 4096] Endgame KRR-KRR} 28. Rde2 {[%emt 0:00:10]} a4 {[%emt 0:05:01]} 29. Kd2 {[%emt 0:04:26]} d4 {[%emt 0:01:25]} 30. R2e4 {[%emt 0:01:22]} c5 {[%emt 0:01:42]} 31. Rb6 {[%emt 0:00:12]} b4 {[%emt 0:01:26]} 32. Ra6 {[%emt 0:00:12]} b3 {[%emt 0:00:44]} 33. Rxa4 {[%emt 0:02:01]} ({Don't do} 33. cxb3 axb3 34. a4 (34. axb3 Rb7 $18) 34... Rf6 35. Rxf6 gxf6 36. Re8+ Kg7) 33... bxc2 {[%emt 0:00:35]} 34. Kxc2 {[%emt 0:00:10]} g6 {[%emt 0:00:15]} 35. Re5 {[%emt 0:00:35]} ({But not} 35. fxg6 Rf2+ 36. Kb3 Rd2 $18) 35... gxf5 {[%emt 0:00:16]} 36. gxf5 {[%emt 0:02:20]} ({Much less strong is} 36. Rxf5 Re8 37. Ra5 Re2+ 38. Kb3 Rb7+ 39. Kc4 Rc2+ 40. Kd5 c4 41. Kxd4 cxd3 42. Kxd3 Rh2 $18) 36... Rg7 {[%emt 0:00:26]} 37. Rxc5 {[%emt 0:02:05]} Rg2+ {[%emt 0:00:37]} 38. Kb1 {[%emt 0:00:35]} Rg1+ {[%emt 0:02:05] [#]} 39. Rc1 $1 {[%emt 0:00:08]} Rg3 {[%emt 0:00:37]} 40. Rxd4 {[%emt 0:00:10]} Rxh3 {[%emt 0:01:03]} 41. Rf1 {[%emt 0:01:03]} Rh2 {[%emt 0:00:07]} 42. f6 {[%emt 0:00:22][%cal Bf5f6,Bf6f7][%mdl 32]} Rb8 {[%emt 0:00:05]} 43. f7+ {[%emt 0:00:19]} Kf8 {[%emt 0:00:07]} 44. b3 {[%emt 0:00:06] Strongly threatening Rg4.} Ra8 {[%emt 0:00:14]} 45. Rg4 {[%emt 0:00:14] White wants to mate with Rg8+.} Ke7 {[%emt 0:01:25]} 46. Rg8 {[%emt 0:00:08]} Rf8 {[%emt 0:00:26]} 47. Rxf8 {[%emt 0:00:58]} Kxf8 {[%emt 0:00:02] KR-KR} 48. a4 {[%emt 0:00:12][%cal Ba2a4,Ba4a5][%mdl 32]} Rd2 {[%emt 0:00:11]} 49. Rf3 {[%emt 0:00:44]} h5 {[%emt 0:00:04]} 50. a5 {[%emt 0:00:11]} h4 {[%emt 0:00:10]} 51. Rh3 {[%emt 0:01:08]} Kxf7 {[%emt 0:00:04]} 52. Rxh4 {[%emt 0:00:08]} Rxd3 {[%emt 0:00:01]} 53. Kc2 {[%emt 0:00:15] White mates.} Re3 {[%emt 0:00:19]} 54. Rd4 {[%emt 0:00:16]} Ke7 {[%emt 0:00:33]} 55. Rd3 {[%emt 0:00:11]} Re1 {[%emt 0:00:21]} 56. b4 {[%emt 0:00:10]} Ra1 {[%emt 0:00:40]} 57. Kb3 {[%emt 0:00:08]} Ke6 {[%emt 0:00:08]} 58. Kc4 {[%emt 0:00:37] Weighted Error Value: White=0.04 (flawless) /Black=0.24 (precise)} 1-0

[Event "26th Hit Open-A 2022"]
[Site "Nova Gorica"]
[Date "2022.09.18"]
[Round "5.35"]
[White "Mihelic, Vesna"]
[Black "Bajec, Borut"]
[Result "1/2-1/2"]
[ECO "B51"]
[WhiteElo "2031"]
[BlackElo "1732"]
[Annotator "TA"]
[PlyCount "51"]
[EventDate "2022.09.16"]
[EventType "swiss"]
[EventCountry "SLO"]
[SourceTitle "playchess.com"]
[Source "ChessBase"]
[SourceQuality "1"]
[TimeControl "5400+30"]

{[%evp 10,51,69,22,89,44,71,83,79,60,75,88,102,97,99,77,116,75,82,55,88,81,108,99,158,87,127,137,131,133,163,135,192,193,222,127,267,256,262,273,328,341,1285,1253]} 1. e4 {[%emt 0:00:03]} c5 {[%emt 0:00:19]} 2. Nf3 {[%emt 0:00:06]} Nc6 {[%emt 0:00:09]} 3. Bb5 {[%emt 0:00:09]} a6 {[%emt 0:00:47]} 4. Bxc6 {[%emt 0:00:18]} bxc6 {[%emt 0:00:10]} 5. O-O {[%emt 0:01:04]} d6 {[%emt 0:00:30]} 6. d3 {[%emt 0:01:40]} (6. e5 $14 {might be stronger.}) 6... g6 {[%emt 0:00:49] B51: Sicilian: Moscow Variation (3 Bb5+) without 3...Bd7.} (6... e5 $11) 7. Re1 {[%emt 0:01:40]} e5 {[%emt 0:01:47] [#]} 8. c3 $1 {[%emt 0:02:52]} Bg7 {[%emt 0:00:46] [#] White is better.} 9. d4 $1 {[%emt 0:03:34]} cxd4 {[%emt 0:00:31]} 10. cxd4 {[%emt 0:00:06] [#]} Qc7 $146 {[%emt 0:04:45]} ({Predecessor:} 10... exd4 11. e5 dxe5 12. Nxe5 Be6 13. Nxc6 Qb6 14. Qa4 Qb5 15. Qxb5 axb5 16. Na3 Ne7 17. Nxe7 Kxe7 {½-½ (41) Timman,J (2630)-Ljubojevic,L (2625) Hilversum 1987}) 11. dxe5 {[%emt 0:01:41]} dxe5 {[%emt 0:00:09]} 12. b3 {[%emt 0:01:16]} Ne7 {[%emt 0:01:02]} 13. Bb2 {[%emt 0:00:40]} O-O {[%emt 0:00:25]} 14. Nbd2 {[%emt 0:00:35]} Bg4 {[%emt 0:01:14]} 15. Qc2 {[%emt 0:00:56]} Rad8 {[%emt 0:03:25]} 16. h3 {[%emt 0:01:01]} Bc8 {[%emt 0:00:57]} ({Black should play} 16... Be6) 17. Rac1 {[%emt 0:02:03]} (17. Nc4 $142) 17... Rd7 {[%emt 0:00:31]} 18. Nc4 {[%emt 0:04:48][%cal Rf3e5]} f6 {[%emt 0:08:04]} 19. Bc3 {[%emt 0:01:41] White is more active.} Bh6 {[%emt 0:03:02]} 20. Ba5 $36 {[%emt 0:02:31][%mdl 2048] White has strong initiative.} Qb8 {[%emt 0:00:48]} (20... Qb7 $16) 21. Rcd1 $18 {[%emt 0:01:18]} Qb5 {[%emt 0:01:25]} 22. Qc3 {[%emt 0:02:54]} ({Better is} 22. b4 $18) 22... Rxd1 {[%emt 0:03:12] A mistake that costs the game.} (22... c5 $16) 23. Rxd1 {[%emt 0:00:18][%cal Be1d1,Bd1d6,Bd6e6][%mdl 32] Black must now prevent Nd6.} Be6 {[%emt 0:00:24]} 24. a4 {[%emt 0:14:46]} Qb8 {[%emt 0:02:02]} 25. Rd6 {[%emt 0:03:43]} Kg7 $2 {[%emt 0:00:56]} (25... Bc8 26. Bd8 Qa7) 26. Rxe6 {[%emt 0:00:13][%mdl 32768] Weighted Error Value: White=0.19 (very precise) /Black=0.39. An unexpected result.} 1/2-1/2